[Event "EIWCC 2017"]
[Site "Riga"]
[Date "2017.04.17"]
[Round "7"]
[White "Isgandarova, Khayala"]
[Black "Badelka, Olga"]
[Result "1-0"]
[ECO "B30"]
[WhiteElo "2211"]
[BlackElo "2362"]
[Annotator "NA RC"]
[PlyCount "99"]
[EventDate "2017.??.??"]
[EventType "swiss"]
[EventCountry "LAT"]
[SourceTitle "playchess.com"]
[Source "ChessBase"]
[SourceQuality "1"]
[TimeControl "40/5400+30:1800+30"]

1. e4 {[%emt 0:00:00]} c5 {[%emt 0:00:05]} 2. Nf3 {[%emt 0:00:00]} Nc6 {[%emt 0:00:04]} 3. Bb5 {[%emt 0:00:00]} e6 {[%emt 0:00:05]} 4. O-O {[%emt 0:00:00]} Nge7 {[%emt 0:00:07]} 5. Re1 {[%emt 0:00:30]} Nd4 {[%emt 0:00:28]} 6. Nxd4 {[%emt 0:00:10]} cxd4 {[%emt 0:00:04]} 7. d3 {[%emt 0:00:54] B30: Sicilian: 2...Nc6 3 Bb5, lines without ...g6} a6 {[%emt 0:00:50]} 8. Ba4 {[%emt 0:00:05]} b5 {[%emt 0:00:08]} 9. Bb3 {[%emt 0:00:05]} Nc6 {[%emt 0:00:52]} 10. Nd2 {[%emt 0:00:14]} Bb7 {[%emt 0:01:55]} 11. f4 {[%emt 0:02:54]} Qc7 {[%emt 0:00:10]} 12. Nf3 {[%emt 0:01:13]} Bd6 {[%emt 0:00:18]} 13. e5 $146 {[%emt 0:09:51]} (13. Qd2 h6 14. Rf1 O-O-O {0-1 (32) Vokhidov,S (2366)-Fedorov,A (2567) St Petersburg 2016}) 13... Bc5 {[%emt 0:00:29]} 14. Ng5 {[%emt 0:00:40]} h6 {[%emt 0:04:58]} 15. Qh5 {[%emt 0:09:36]} g6 {[%emt 0:00:34]} 16. Qh3 {[%emt 0:00:22]} Be7 {[%emt 0:17:50]} 17. Ne4 {[%emt 0:15:29]} O-O-O {[%emt 0:01:51]} 18. c4 {[%emt 0:02:09]} b4 {[%emt 0:05:15]} 19. c5 {[%emt 0:06:14]} Kb8 {[%emt 0:03:25]} 20. Nd6 {[%emt 0:03:56]} Bxd6 {[%emt 0:00:18]} 21. cxd6 {[%emt 0:00:10]} Qb6 {[%emt 0:00:41]} 22. Bd1 {[%emt 0:03:10]} f5 {[%emt 0:12:15]} 23. Qg3 {[%emt 0:07:36]} Rhg8 {[%emt 0:17:04]} 24. h4 {[%emt 0:00:44]} Rc8 {[%emt 0:01:19]} 25. Bd2 {[%emt 0:02:57]} Nd8 {[%emt 0:08:01]} 26. Rc1 {[%emt 0:04:01]} (26. Bb3 $16) 26... Rxc1 {[%emt 0:00:41]} 27. Bxc1 {[%emt 0:00:03]} Nf7 {[%emt 0:04:02]} (27... Qa5 $11 {remains equal.}) 28. Bd2 {[%emt 0:02:35]} a5 {[%emt 0:01:18]} 29. Bh5 {[%emt 0:04:30]} Nh8 {[%emt 0:02:59]} 30. Rc1 {[%emt 0:01:07]} Rc8 {[%emt 0:00:50]} 31. Rxc8+ {[%emt 0:00:26]} Bxc8 {[%emt 0:00:12]} 32. Bd1 {[%emt 0:03:02]} Qb5 {[%emt 0:06:59]} 33. Be2 $2 {[%emt 0:03:47]} (33. h5 $18) 33... Qa4 {[%emt 0:00:52]} 34. Qe1 {[%emt 0:01:43]} Qc2 {[%emt 0:02:17]} 35. Qc1 {[%emt 0:00:46]} Qxc1+ {[%emt 0:00:04]} 36. Bxc1 {[%emt 0:00:02]} Kb7 {[%emt 0:04:18]} 37. h5 {[%emt 0:00:33]} Kb6 {[%emt 0:00:39]} 38. hxg6 {[%emt 0:00:45]} Nxg6 {[%emt 0:00:04]} 39. Bh5 {[%emt 0:00:14]} Nf8 {[%emt 0:01:04]} 40. Kf2 {[%emt 0:00:00]} Ba6 {[%emt 0:00:25]} 41. Ke2 {[%emt 0:00:58]} Bb7 {[%emt 0:00:47]} 42. Bd2 {[%emt 0:06:53]} Bxg2 {[%emt 0:00:57]} 43. Be1 {[%emt 0:00:06]} Bh3 {[%emt 0:00:38]} 44. Kf3 {[%emt 0:00:16]} Bg4+ {[%emt 0:13:20]} 45. Bxg4 {[%emt 0:02:17]} fxg4+ {[%emt 0:00:04]} 46. Kxg4 {[%emt 0:00:05]} Ng6 {[%emt 0:00:10]} 47. Bg3 {[%emt 0:00:21]} Nh8 {[%emt 0:08:26]} 48. Kh5 {[%emt 0:00:11]} Kc6 {[%emt 0:00:25]} 49. Bh4 {[%emt 0:00:18]} Kd5 $18 {[%emt 0:02:51]} 50. Bf6 {[%emt 0:01:10]} 1-0

[Event "EIWCC 2017"]
[Site "Riga"]
[Date "2017.04.17"]
[Round "7"]
[White "De Seroux, Camille"]
[Black "Balaian, Alina"]
[Result "1-0"]
[ECO "C05"]
[WhiteElo "2122"]
[BlackElo "2229"]
[Annotator "ChessBase"]
[PlyCount "105"]
[EventDate "2017.??.??"]
[EventType "swiss"]
[EventCountry "LAT"]
[SourceTitle "playchess.com"]
[Source "ChessBase"]
[SourceQuality "1"]
[TimeControl "40/5400+30:1800+30"]

1. e4 {[%emt 0:00:00]} e6 {[%emt 0:00:04]} 2. d4 {[%emt 0:00:00]} d5 {[%emt 0:00:03]} 3. Nd2 {[%emt 0:00:00]} Nf6 {[%emt 0:00:04]} 4. e5 {[%emt 0:00:00]} Nfd7 {[%emt 0:00:04]} 5. c3 {[%emt 0:00:06]} b6 {[%emt 0:00:48]} 6. Bd3 {[%emt 0:13:26]} Ba6 {[%emt 0:00:31]} 7. Ndf3 {[%emt 0:02:00]} Bxd3 {[%emt 0:01:56]} 8. Qxd3 {[%emt 0:00:08]} c5 {[%emt 0:04:18]} 9. Ne2 {[%emt 0:03:00]} Be7 {[%emt 0:03:00]} 10. O-O {[%emt 0:00:42]} Nc6 {[%emt 0:02:29]} 11. Re1 {[%emt 0:10:28]} Rc8 {[%emt 0:01:22]} 12. Bd2 {[%emt 0:06:17]} O-O {[%emt 0:09:08]} 13. Ng3 {[%emt 0:09:49]} Re8 {[%emt 0:04:52]} 14. h3 {[%emt 0:03:30]} f5 {[%emt 0:08:13]} 15. exf6 {[%emt 0:04:53]} Bxf6 {[%emt 0:00:09]} 16. Nh5 {[%emt 0:02:05]} c4 {[%emt 0:01:16]} 17. Qc2 {[%emt 0:09:02]} e5 {[%emt 0:04:08]} 18. Qf5 {[%emt 0:04:21]} Rc7 {[%emt 0:18:19]} 19. Bg5 {[%emt 0:08:59]} Bxg5 {[%emt 0:03:13]} 20. Nxg5 {[%emt 0:01:45]} Nf8 {[%emt 0:00:21]} 21. dxe5 {[%emt 0:01:34]} h6 {[%emt 0:00:56]} 22. Nf3 {[%emt 0:07:04]} Qd7 {[%emt 0:20:28]} 23. Qxd7 {[%emt 0:06:59]} Rxd7 {[%emt 0:00:05]} 24. Rad1 {[%emt 0:00:26]} Ng6 {[%emt 0:04:02]} 25. e6 {[%emt 0:01:46]} Rd6 {[%emt 0:00:08]} 26. Nd4 {[%emt 0:01:29]} Nce5 {[%emt 0:01:08]} 27. f4 {[%emt 0:01:26]} Nd3 {[%emt 0:00:40]} 28. Rf1 {[%emt 0:01:15]} Rf8 {[%emt 0:04:40]} 29. f5 {[%emt 0:00:42]} Ne7 {[%emt 0:02:46]} 30. Rd2 {[%emt 0:00:18]} Nc5 {[%emt 0:02:15]} 31. g4 {[%emt 0:00:36]} Ne4 {[%emt 0:01:23]} 32. Re2 {[%emt 0:00:17]} a6 {[%emt 0:00:11]} 33. Kg2 {[%emt 0:00:16]} Nf6 {[%emt 0:01:49]} 34. Nxf6+ {[%emt 0:00:50]} gxf6 {[%emt 0:00:19]} 35. Rd1 {[%emt 0:00:55]} Kg7 {[%emt 0:00:46]} 36. Red2 {[%emt 0:00:27]} h5 {[%emt 0:01:16]} 37. Nc2 {[%emt 0:00:25]} hxg4 {[%emt 0:00:19]} 38. hxg4 {[%emt 0:00:05]} Rfd8 {[%emt 0:00:20]} 39. Ne3 {[%emt 0:00:48]} b5 {[%emt 0:00:02]} 40. Kg3 {[%emt 0:00:00]} a5 {[%emt 0:01:59]} 41. Kf4 {[%emt 0:11:39]} Rh8 {[%emt 0:08:11]} 42. g5 {[%emt 0:03:22]} fxg5+ {[%emt 0:06:18]} 43. Ke5 {[%emt 0:04:40]} Nc8 {[%emt 0:00:01]} 44. Rxd5 {[%emt 0:01:49]} Rh3 {[%emt 0:01:43]} 45. Ng4 {[%emt 0:03:36]} Rxd5+ {[%emt 0:00:32]} 46. Rxd5 {[%emt 0:00:27]} Rd3 {[%emt 0:00:46]} 47. Rd7+ {[%emt 0:02:43]} Kf8 {[%emt 0:00:16]} 48. Rf7+ {[%emt 0:02:24]} Ke8 {[%emt 0:00:17]} 49. Nf6+ {[%emt 0:00:26]} Kd8 {[%emt 0:00:01]} 50. Nd5 {[%emt 0:02:16]} Ke8 {[%emt 0:01:13]} 51. Rh7 {[%emt 0:01:39]} Rxd5+ {[%emt 0:01:05]} 52. Kxd5 {[%emt 0:00:14]} Ne7+ {[%emt 0:00:20]} 53. Ke5 {[%emt 0:00:18]} 1-0

[Event "EIWCC 2017"]
[Site "Riga"]
[Date "2017.04.17"]
[Round "7"]
[White "Kouvatsou, Maria"]
[Black "Kazarian, Anna-Maja"]
[Result "1-0"]
[ECO "C00"]
[WhiteElo "2016"]
[BlackElo "2257"]
[Annotator "ChessBase"]
[PlyCount "115"]
[EventDate "2017.??.??"]
[EventType "swiss"]
[EventCountry "LAT"]
[SourceTitle "playchess.com"]
[Source "ChessBase"]
[SourceQuality "1"]
[TimeControl "40/5400+30:1800+30"]

1. e4 {[%emt 0:00:00]} e6 {[%emt 0:00:03]} 2. d3 {[%emt 0:00:00]} c5 {[%emt 0:01:24]} 3. Nf3 {[%emt 0:00:04]} Nc6 {[%emt 0:00:05]} 4. g3 {[%emt 0:00:33]} d6 {[%emt 0:01:21]} 5. Bg2 {[%emt 0:00:12]} Nf6 {[%emt 0:00:19]} 6. O-O {[%emt 0:00:20]} Be7 {[%emt 0:02:01]} 7. Re1 {[%emt 0:02:06]} d5 {[%emt 0:13:38]} 8. e5 {[%emt 0:00:24]} Nd7 {[%emt 0:00:06]} 9. h4 {[%emt 0:01:49]} h6 {[%emt 0:01:51]} 10. h5 {[%emt 0:04:05]} Qc7 {[%emt 0:07:09]} 11. Bf4 {[%emt 0:04:10]} Qb6 {[%emt 0:11:03]} 12. Qc1 {[%emt 0:01:10]} Nf8 {[%emt 0:14:36]} 13. c4 {[%emt 0:09:53]} d4 {[%emt 0:07:44]} 14. a3 {[%emt 0:04:40]} Bd7 {[%emt 0:01:26]} 15. Nbd2 {[%emt 0:03:35]} O-O-O {[%emt 0:00:38]} 16. b4 {[%emt 0:15:33]} cxb4 {[%emt 0:02:11]} 17. Ne4 {[%emt 0:07:15]} bxa3 {[%emt 0:12:48]} 18. c5 {[%emt 0:01:16]} Qb2 {[%emt 0:05:32]} 19. Rxa3 {[%emt 0:01:36]} Qxc1 {[%emt 0:00:11]} 20. Rxc1 {[%emt 0:00:06]} Kb8 {[%emt 0:07:55]} 21. Rb1 {[%emt 0:20:48]} Bc8 {[%emt 0:04:25]} 22. Ra4 {[%emt 0:07:16]} Nd7 {[%emt 0:01:08]} 23. Rc4 {[%emt 0:00:18]} g5 {[%emt 0:00:55]} 24. hxg6 {[%emt 0:00:31]} fxg6 {[%emt 0:00:12]} 25. g4 {[%emt 0:01:08]} g5 {[%emt 0:00:04]} 26. Bg3 {[%emt 0:00:18]} Ka8 {[%emt 0:01:06]} 27. Nd6 {[%emt 0:01:38]} Bxd6 {[%emt 0:00:11]} 28. cxd6 {[%emt 0:00:06]} Nb6 {[%emt 0:01:02]} 29. Rc5 {[%emt 0:00:32]} Nd5 {[%emt 0:00:58]} 30. Rb3 {[%emt 0:01:43]} Bd7 {[%emt 0:00:48]} 31. Nd2 {[%emt 0:00:44]} Nc3 {[%emt 0:00:12]} 32. Ne4 {[%emt 0:03:12]} Nxe4 {[%emt 0:01:43]} 33. Bxe4 {[%emt 0:00:07]} Rc8 {[%emt 0:00:52]} 34. Rcb5 {[%emt 0:00:58]} Rb8 {[%emt 0:01:02]} 35. f3 {[%emt 0:00:39]} Rhc8 {[%emt 0:00:37]} 36. Bf2 {[%emt 0:01:51]} b6 {[%emt 0:00:39]} 37. Bxd4 {[%emt 0:00:31]} Rb7 {[%emt 0:00:14]} 38. Bf2 {[%emt 0:01:22]} Kb8 {[%emt 0:00:29]} 39. Kg2 {[%emt 0:02:54]} Nd8 {[%emt 0:00:50]} 40. Bxb7 {[%emt 0:00:00]} Kxb7 {[%emt 0:00:19]} 41. R5b4 {[%emt 0:02:41]} Nc6 {[%emt 0:01:31]} 42. Re4 {[%emt 0:03:57]} Na5 {[%emt 0:01:24]} 43. Ra3 {[%emt 0:03:45]} Rc2 {[%emt 0:09:46]} 44. Kg3 {[%emt 0:03:10]} Nc6 {[%emt 0:09:12]} 45. Re1 {[%emt 0:04:12]} Nb4 {[%emt 0:06:07]} 46. Rh1 {[%emt 0:04:56]} a5 {[%emt 0:03:39]} 47. Rxh6 {[%emt 0:00:55]} Nd5 {[%emt 0:01:13]} 48. Rg6 {[%emt 0:05:45]} a4 {[%emt 0:00:08]} 49. Rxg5 {[%emt 0:00:18]} b5 {[%emt 0:00:03]} 50. Rg7 {[%emt 0:00:22]} Kc6 {[%emt 0:01:11]} 51. g5 {[%emt 0:02:14]} Nc3 {[%emt 0:00:13]} 52. g6 {[%emt 0:02:33]} b4 {[%emt 0:00:02]} 53. Rxd7 {[%emt 0:00:54]} bxa3 {[%emt 0:02:00]} 54. g7 {[%emt 0:00:15]} Kxd7 {[%emt 0:00:43]} 55. g8=Q {[%emt 0:00:09]} a2 {[%emt 0:00:30]} 56. Qf7+ {[%emt 0:00:33]} Kc6 {[%emt 0:00:04]} 57. Qc7+ {[%emt 0:00:13]} Kb5 {[%emt 0:00:13]} 58. Qb6# 1-0

[Event "EIWCC 2017"]
[Site "Riga"]
[Date "2017.04.17"]
[Round "7"]
[White "Narva, Regina"]
[Black "Movileanu, Daniela"]
[Result "1/2-1/2"]
[ECO "B50"]
[WhiteElo "2000"]
[BlackElo "2213"]
[Annotator "NA"]
[PlyCount "49"]
[EventDate "2017.??.??"]
[EventType "swiss"]
[EventCountry "LAT"]
[SourceTitle "playchess.com"]
[Source "ChessBase"]
[SourceQuality "1"]
[TimeControl "40/5400+30:1800+30"]

1. e4 {[%emt 0:00:00]} c5 {[%emt 0:00:09]} 2. Nf3 {[%emt 0:00:02]} d6 {[%emt 0:00:17]} 3. c3 {[%emt 0:00:08]} Nf6 {[%emt 0:00:30]} 4. Be2 {[%emt 0:01:31]} Bg4 {[%emt 0:01:01]} 5. h3 {[%emt 0:00:50]} Bh5 {[%emt 0:00:33]} 6. O-O {[%emt 0:00:39]} e6 {[%emt 0:00:59]} 7. d4 {[%emt 0:02:19]} cxd4 {[%emt 0:02:04]} 8. cxd4 {[%emt 0:18:17]} d5 {[%emt 0:03:44]} 9. exd5 {[%emt 0:13:45]} Nxd5 {[%emt 0:04:58]} 10. Ne5 {[%emt 0:04:03]} Bxe2 {[%emt 0:02:07]} 11. Qxe2 {[%emt 0:00:00]} Nc6 {[%emt 0:11:48]} 12. Nxc6 {[%emt 0:02:15]} bxc6 {[%emt 0:00:03]} 13. Nc3 {[%emt 0:00:35]} Be7 {[%emt 0:03:28]} 14. Be3 {[%emt 0:11:54]} O-O {[%emt 0:01:38]} 15. Rac1 {[%emt 0:00:58]} Rb8 {[%emt 0:17:24]} 16. Rc2 {[%emt 0:03:45]} Qa5 {[%emt 0:06:13]} 17. Nxd5 {[%emt 0:05:57]} cxd5 {[%emt 0:02:47]} 18. b3 {[%emt 0:00:32]} Ba3 $11 {[%emt 0:04:40]} 19. Qg4 {[%emt 0:04:01]} Rfc8 {[%emt 0:15:33]} 20. Re2 {[%emt 0:02:00]} Qa6 {[%emt 0:05:45]} 21. Bf4 {[%emt 0:05:00]} Bd6 {[%emt 0:04:21]} 22. Bh6 {[%emt 0:04:12]} Bf8 {[%emt 0:00:50]} 23. Bf4 {[%emt 0:04:34]} Bd6 {[%emt 0:00:10]} 24. Bh6 {[%emt 0:00:48]} Bf8 {[%emt 0:00:05]} 25. Bf4 {[%emt 0:01:18]} 1/2-1/2

[Event "EIWCC 2017"]
[Site "Riga"]
[Date "2017.04.17"]
[Round "7"]
[White "Heinatz, Maria"]
[Black "Caglar, Sila"]
[Result "1/2-1/2"]
[ECO "A48"]
[WhiteElo "1990"]
[BlackElo "2093"]
[Annotator "NA"]
[PlyCount "95"]
[EventDate "2017.??.??"]
[EventType "swiss"]
[EventCountry "LAT"]
[SourceTitle "playchess.com"]
[Source "ChessBase"]
[SourceQuality "1"]
[TimeControl "40/5400+30:1800+30"]

1. Nf3 {[%emt 0:00:00]} Nf6 {[%emt 0:00:54]} 2. d4 {[%emt 0:00:00]} g6 {[%emt 0:01:36]} 3. Bg5 {[%emt 0:00:07]} d6 {[%emt 0:00:44]} 4. e3 {[%emt 0:02:36]} Bg7 {[%emt 0:03:29]} 5. Bd3 {[%emt 0:01:53]} O-O {[%emt 0:01:09]} 6. Nbd2 {[%emt 0:02:19]} Nbd7 {[%emt 0:04:24]} 7. O-O {[%emt 0:01:42]} c5 {[%emt 0:03:32]} 8. c3 {[%emt 0:04:36] A48: 1 d4 Nf6 2 Nf3 g6: Torre, London and Colle Systems} Qc7 {[%emt 0:13:36]} (8... b6 9. Re1 Bb7 10. e4 h6 11. Bh4 g5 12. Bg3 Nh5 13. d5 Nxg3 14. hxg3 Nf6 15. Nc4 {½-½ (52) Shengelia,D (2573)-Wagner,D (2569) Zillertal 2015}) 9. Re1 {[%emt 0:07:04]} Re8 {[%emt 0:08:30]} 10. e4 $146 {[%emt 0:08:41]} (10. h3 e5 11. dxe5 Nxe5 12. Bc2 d5 13. Nxe5 Qxe5 14. Nf3 Qd6 15. Bf4 Qb6 {½-½ (31) Guth,S (1728)-Kaulbars,P (1540) Offenbach 2012}) 10... h6 {[%emt 0:05:28]} 11. Bxf6 {[%emt 0:01:10]} Bxf6 {[%emt 0:04:56]} 12. Qe2 {[%emt 0:02:00]} Bg7 {[%emt 0:06:44]} 13. e5 {[%emt 0:12:54]} dxe5 {[%emt 0:06:44]} 14. dxe5 {[%emt 0:00:15]} Nf8 {[%emt 0:01:14]} 15. Bc4 {[%emt 0:09:20]} Ne6 {[%emt 0:04:51]} 16. Qe4 {[%emt 0:03:31]} Bd7 {[%emt 0:02:12]} 17. Nh4 {[%emt 0:10:01]} Rad8 {[%emt 0:09:10]} 18. Ndf3 {[%emt 0:04:38]} ({Much weaker is} 18. Nxg6 b5 19. Bd5 Ng5 $17) 18... Bc6 {[%emt 0:03:53]} 19. Qg4 {[%emt 0:01:56]} h5 {[%emt 0:01:40]} 20. Qg3 {[%emt 0:00:26]} ({White should try} 20. Qh3 $1 $14 Nf8 {[#]} 21. Nxg6 $1 {[%mdl 512]}) 20... Bd5 {[%emt 0:01:11]} 21. Bb5 {[%emt 0:05:36]} Bc6 {[%emt 0:01:06]} 22. Bc4 {[%emt 0:00:08]} Bd5 {[%emt 0:01:11]} 23. Bb5 {[%emt 0:00:04]} Rf8 {[%emt 0:00:29]} 24. Ng5 {[%emt 0:02:22]} Nxg5 {[%emt 0:04:05]} 25. Qxg5 {[%emt 0:00:01]} Be6 {[%emt 0:00:11]} 26. Qe3 {[%emt 0:02:45]} Rd5 {[%emt 0:02:01]} 27. Nf3 {[%emt 0:00:32]} c4 {[%emt 0:00:39]} 28. Ba4 {[%emt 0:00:51]} Bg4 {[%emt 0:00:42]} 29. e6 {[%emt 0:05:39]} Bxe6 {[%emt 0:01:27]} 30. Bc2 $17 {[%emt 0:00:52]} Bg4 {[%emt 0:04:40]} 31. Qxe7 {[%emt 0:02:57]} Qxe7 {[%emt 0:00:09]} 32. Rxe7 {[%emt 0:00:02]} Bxf3 {[%emt 0:00:06]} 33. gxf3 {[%emt 0:00:04]} Rb5 {[%emt 0:00:20]} 34. Be4 {[%emt 0:00:55]} Rxb2 {[%emt 0:00:23]} 35. Rxb7 {[%emt 0:03:08]} Bxc3 {[%emt 0:00:32]} 36. Rc1 {[%emt 0:00:53]} Rxb7 {[%emt 0:03:13]} 37. Bxb7 {[%emt 0:00:03]} Bd4 {[%emt 0:00:47]} 38. Rxc4 {[%emt 0:00:27]} Rd8 {[%emt 0:00:13]} 39. Rc8 {[%emt 0:00:56]} Rxc8 40. Bxc8 {[%emt 0:00:00]} g5 {[%emt 0:00:54]} 41. f4 {[%emt 0:02:37]} gxf4 {[%emt 0:02:13]} 42. Kg2 {[%emt 0:00:18]} Kg7 {[%emt 0:00:10]} 43. h3 {[%emt 0:00:40]} Kf6 {[%emt 0:00:39]} 44. Ba6 {[%emt 0:00:48]} Kg5 {[%emt 0:00:41]} 45. f3 {[%emt 0:00:30]} Bc5 {[%emt 0:01:22]} 46. Bc4 {[%emt 0:00:16]} f6 {[%emt 0:00:09]} 47. Be6 {[%emt 0:01:13]} a5 {[%emt 0:00:19]} 48. Bf7 {[%emt 0:00:26]} 1/2-1/2

[Event "EIWCC 2017"]
[Site "Riga"]
[Date "2017.04.17"]
[Round "7"]
[White "Limanovska, Elizabete"]
[Black "Mammadova, Narmin"]
[Result "0-1"]
[ECO "C03"]
[WhiteElo "1990"]
[BlackElo "2240"]
[Annotator "NA"]
[PlyCount "68"]
[EventDate "2017.??.??"]
[EventType "swiss"]
[EventCountry "LAT"]
[SourceTitle "playchess.com"]
[Source "ChessBase"]
[SourceQuality "1"]
[TimeControl "40/5400+30:1800+30"]

1. e4 {[%emt 0:00:00]} e6 {[%emt 0:00:06]} 2. d4 {[%emt 0:00:00]} d5 {[%emt 0:00:04]} 3. Nd2 {[%emt 0:00:00]} Be7 {[%emt 0:00:08]} 4. e5 {[%emt 0:12:18]} Nh6 {[%emt 0:04:18] C03: French Tarrasch: Unusual Black 3rd moves} (4... c5 5. c3 Nc6 6. Bd3 Qb6 7. Ndf3 f6 8. Ne2 fxe5 9. Nxe5 Nxe5 10. dxe5 Bd7 11. O-O Qc7 12. c4 Qxe5 13. Bf4 Qh5 {1-0 (59) Kovalev,V (2598)-Sjugirov,S (2673) Moscow 2017}) 5. Bd3 {[%emt 0:04:24]} c5 {[%emt 0:02:22]} 6. c3 {[%emt 0:03:30]} Nc6 {[%emt 0:02:39]} 7. Ne2 {[%emt 0:01:47]} cxd4 {[%emt 0:13:41]} 8. cxd4 {[%emt 0:00:06] LiveBook: 14 Games} ({Of course not} 8. Nxd4 Nxe5 9. Bc2 O-O $15) 8... Qb6 {[%emt 0:00:55]} 9. Nf3 {[%emt 0:08:15]} Nf5 {[%emt 0:02:55]} 10. O-O {[%emt 0:01:57]} Bd7 {[%emt 0:07:07]} 11. Bb1 {[%emt 0:10:34]} h6 $146 {[%emt 0:09:11]} (11... h5 12. Bxf5 exf5 13. Bg5 Qxb2 {0-1 (59) Martinez Piqueras,C (2141)-Ladron de Guevara Pinto,P (2320) Linares 2015}) 12. g4 {[%emt 0:09:31]} Nh4 {[%emt 0:00:43]} 13. Nxh4 {[%emt 0:00:05]} Bxh4 {[%emt 0:00:01]} 14. b3 {[%emt 0:00:53]} Be7 {[%emt 0:08:52]} 15. Kh1 {[%emt 0:04:19]} O-O-O {[%emt 0:01:15]} 16. Be3 {[%emt 0:02:43]} f6 {[%emt 0:07:00]} 17. exf6 {[%emt 0:03:39]} gxf6 {[%emt 0:13:39]} 18. Nc3 $17 {[%emt 0:01:55]} Qa5 {[%emt 0:02:12]} 19. Na4 {[%emt 0:06:11]} Be8 {[%emt 0:06:44]} 20. Qe2 {[%emt 0:06:14]} h5 {[%emt 0:03:42]} 21. f3 {[%emt 0:02:30]} Qc7 {[%emt 0:03:02]} 22. Bd3 {[%emt 0:01:37]} Kb8 {[%emt 0:02:47]} 23. Rac1 {[%emt 0:00:46]} hxg4 {[%emt 0:01:37]} 24. fxg4 {[%emt 0:00:03]} Bd6 {[%emt 0:00:07]} 25. Bg1 {[%emt 0:02:50]} Qe7 {[%emt 0:03:44]} 26. Qf2 {[%emt 0:01:34]} Rh6 {[%emt 0:00:37]} 27. Nc5 {[%emt 0:01:05]} b6 {[%emt 0:03:10]} 28. Na4 {[%emt 0:01:53]} Bd7 {[%emt 0:00:33]} 29. Bb5 {[%emt 0:02:23]} Kb7 {[%emt 0:00:58]} 30. Rc3 {[%emt 0:06:05]} Rdh8 {[%emt 0:00:33]} 31. Rfc1 {[%emt 0:00:13]} Qh7 {[%emt 0:00:46]} 32. Bxc6+ {[%emt 0:02:29]} Bxc6 {[%emt 0:00:01]} 33. Rxc6 {[%emt 0:00:07]} Qe4+ {[%emt 0:00:05]} 34. Qg2 {[%emt 0:00:26]} Rxh2+ {[%emt 0:00:04]} 0-1

[Event "EIWCC 2017"]
[Site "Riga"]
[Date "2017.04.17"]
[Round "7"]
[White "Gundogan, Sinem Cagla"]
[Black "Calzetta Ruiz, Monica"]
[Result "0-1"]
[ECO "B25"]
[WhiteElo "1885"]
[BlackElo "2257"]
[Annotator "ChessBase"]
[PlyCount "72"]
[EventDate "2017.??.??"]
[EventType "swiss"]
[EventCountry "LAT"]
[SourceTitle "playchess.com"]
[Source "ChessBase"]
[SourceQuality "1"]
[TimeControl "40/5400+30:1800+30"]

1. e4 {[%emt 0:00:00]} c5 {[%emt 0:00:05]} 2. Nc3 {[%emt 0:00:00]} g6 {[%emt 0:00:20]} 3. g3 {[%emt 0:00:00]} Bg7 {[%emt 0:00:15]} 4. Bg2 {[%emt 0:00:00]} Nc6 {[%emt 0:00:44]} 5. d3 {[%emt 0:00:00]} d6 {[%emt 0:00:44]} 6. f4 {[%emt 0:00:03]} Rb8 {[%emt 0:02:41]} 7. Nf3 {[%emt 0:08:53]} b5 {[%emt 0:02:27]} 8. O-O {[%emt 0:00:55]} b4 {[%emt 0:01:00]} 9. Ne2 {[%emt 0:01:52]} Nf6 {[%emt 0:11:11]} 10. Nh4 {[%emt 0:16:08]} Qb6 {[%emt 0:03:55]} 11. h3 {[%emt 0:06:11]} O-O {[%emt 0:13:04]} 12. Be3 {[%emt 0:05:15]} Nd7 {[%emt 0:03:39]} 13. Qc1 {[%emt 0:03:51]} Nd4 {[%emt 0:03:27]} 14. Nxd4 {[%emt 0:02:11]} cxd4 {[%emt 0:00:11]} 15. Bd2 {[%emt 0:00:06]} Ba6 {[%emt 0:01:10]} 16. f5 {[%emt 0:06:26]} Rbc8 {[%emt 0:04:09]} 17. Qd1 {[%emt 0:02:04]} Ne5 {[%emt 0:02:26]} 18. Bf4 {[%emt 0:04:24]} Rc5 {[%emt 0:04:46]} 19. Rf2 {[%emt 0:04:14]} Bb5 {[%emt 0:09:38]} 20. a4 {[%emt 0:07:24]} bxa3 {[%emt 0:05:32]} 21. Rxa3 {[%emt 0:00:20]} Rfc8 {[%emt 0:00:34]} 22. b3 {[%emt 0:07:38]} Rc3 {[%emt 0:06:27]} 23. Ra2 {[%emt 0:01:59]} Bxd3 {[%emt 0:09:07]} 24. cxd3 {[%emt 0:00:29]} Nxd3 {[%emt 0:00:03]} 25. Rf1 {[%emt 0:03:47]} Nxf4 {[%emt 0:00:05]} 26. gxf4 {[%emt 0:00:06]} d3+ {[%emt 0:00:06]} 27. Kh1 {[%emt 0:04:47]} Rc2 {[%emt 0:01:31]} 28. Qg4 {[%emt 0:08:34]} Rxa2 {[%emt 0:05:25]} 29. fxg6 {[%emt 0:01:01]} Rcc2 {[%emt 0:00:02]} 30. gxh7+ {[%emt 0:00:07]} Kh8 {[%emt 0:01:25]} 31. Rg1 {[%emt 0:01:04]} Qe3 {[%emt 0:03:34]} 32. Nf5 {[%emt 0:04:07]} Qxg1+ {[%emt 0:00:04]} 33. Kxg1 {[%emt 0:00:04]} Rxg2+ {[%emt 0:00:11]} 34. Qxg2 {[%emt 0:00:01]} Bd4+ {[%emt 0:00:22]} 35. Nxd4 {[%emt 0:00:48]} Rxg2+ {[%emt 0:00:04]} 36. Kxg2 {[%emt 0:00:04]} d2 {[%emt 0:00:05]} 0-1